fUSD/lending_fUSD_20250521
["ID","MTS","AMOUNT","RATE_DAILY","PERIOD"]
[361825374,1747823640254,-1031.8,0.0003726,5]
[361825375,1747823640263,-2328.19,0.0003726,5]
[361825376,1747823640274,-2178.09,0.0003726,5]
[361825377,1747823640283,-595.22,0.0003726,5]
[361825378,1747823640294,-12779.36,0.0003726,5]
[361825379,1747823640303,-3199.69,0.0003726,5]
[361825380,1747823640313,-464.93,0.0003726,5]
[361825381,1747823640322,-3624.48,0.0003726,5]
[361825382,1747823640332,-1385.93,0.0003726,5]
[361825383,1747823640342,-1592.89,0.0003726,5]
[361825384,1747823640354,-420.0,0.0003726,5]
[361825385,1747823640363,-3239.25,0.0003726,5]
[361825386,1747823640373,-4626.37,0.0003726,5]
[361825387,1747823640383,-1377.38,0.0003726,5]
[361825388,1747823640397,-613.45,0.0003726,5]
[361825389,1747823640407,-2100.46,0.0003726,5]
[361825390,1747823640418,-232873.01,0.0003726,5]
[361825391,1747823640429,-2870.6,0.0003726,5]
[361825392,1747823640439,-420.0,0.0003726,5]
[361825393,1747823640449,-544.44,0.0003726,5]
[361825394,1747823640458,-2582.79,0.0003726,5]
[361825395,1747823640469,-1455.85,0.0003726,5]
[361825396,1747823640479,-1140.2,0.0003726,5]
[361825397,1747823640489,-3817.8,0.0003726,5]
[361825398,1747823640498,-814.19,0.0003726,5]
[361825399,1747823640507,-1001.8,0.0003726,5]
[361825400,1747823640517,-24741.12,0.0003726,5]
[361825401,1747823640528,-746.18,0.0003726,5]
[361825402,1747823640538,-1332.61,0.0003726,5]
[361825403,1747823640548,-847.4,0.0003726,5]
[361825404,1747823640557,-6653.58,0.0003726,5]
[361825405,1747823640567,-2208.36,0.0003726,5]
[361825406,1747823640577,-3466.92,0.0003726,5]
[361825407,1747823640587,-756.27,0.0003726,5]
[361825408,1747823640597,-2780.98,0.0003726,5]
[361825409,1747823640607,-3727.2,0.0003726,5]
[361825410,1747823640617,-43430.9,0.0003726,5]
[361825411,1747823640627,-4377.12,0.0003726,5]
[361825412,1747823640637,-662.42,0.0003726,5]
[361825413,1747823640647,-1355.36,0.0003726,5]
[361825414,1747823640656,-3823.68,0.0003726,5]
[361825415,1747823640666,-1646.2,0.0003726,5]
[361825416,1747823640676,-1929.18,0.0003726,5]
[361825417,1747823640686,-692.1,0.0003726,5]
[361825418,1747823640695,-27430.46,0.0003726,5]
[361825419,1747823640705,-694.13,0.0003726,5]
[361825420,1747823640715,-1375.19,0.0003726,5]
[361825421,1747823640725,-420.0,0.0003726,5]
[361825422,1747823640735,-1035.87,0.0003726,5]
[361825423,1747823640745,-8392.23,0.0003726,5]
[361825424,1747823640755,-3873.45,0.0003726,5]
[361825425,1747823640764,-2620.97,0.0003726,5]
[361825426,1747823640775,-831.34,0.0003726,5]
[361825427,1747823640786,-683.8,0.0003726,5]
[361825428,1747823640795,-420.0,0.0003726,5]
[361825429,1747823640805,-2236.59,0.0003726,5]
[361825430,1747823640815,-862.9,0.0003726,5]
[361825431,1747823640825,-648.18,0.0003726,5]
[361825432,1747823640836,-333.94,0.0003726,5]
[361825433,1747823640845,-2055.72,0.0003726,5]
[361825434,1747823640855,-2431.99,0.0003726,5]
[361825435,1747823640865,-30819.65,0.0003726,5]
[361825436,1747823640875,-426.36,0.0003726,5]
[361825437,1747823640885,-514.55,0.0003726,5]
[361825438,1747823640895,-3529.5,0.0003726,5]
[361825439,1747823640905,-420.0,0.0003726,5]
[361825440,1747823640914,-507.94,0.0003726,5]
[361825441,1747823640924,-7158.91,0.0003726,5]
[361825442,1747823640934,-1372.96,0.0003726,5]
[361825443,1747823640944,-11263.62,0.0003726,5]
[361825444,1747823640953,-1395.97,0.0003726,5]
[361825445,1747823640963,-10218.82,0.0003726,5]
[361825446,1747823640973,-11955.57,0.0003726,5]
[361825447,1747823640984,-903.34,0.0003726,5]
[361825448,1747823640994,-4237.43,0.0003726,5]
[361825449,1747823641003,-1156.02,0.0003726,5]
[361825450,1747823641013,-1250.1,0.0003726,5]
[361825451,1747823641022,-1940.56,0.0003726,5]
[361825452,1747823641032,-1535.0,0.0003726,5]
[361825453,1747823641042,-2611.65,0.0003726,5]
[361825454,1747823641052,-2088.87,0.0003726,5]
[361825455,1747823641062,-604.9,0.0003726,5]
[361825456,1747823641072,-436.47,0.0003726,5]
[361825457,1747823641081,-4967.59,0.0003726,5]
[361825458,1747823641091,-512.59,0.0003726,5]
[361825459,1747823641100,-3994.4,0.0003726,5]
[361825460,1747823641109,-997.3,0.0003726,5]
[361825461,1747823641119,-420.0,0.0003726,5]
[361825462,1747823641129,-2461.55,0.0003726,5]
[361825463,1747823641140,-3960.15,0.0003726,5]
[361825464,1747823641149,-2650.09,0.0003726,5]
[361825465,1747823641158,-1029.17,0.0003726,5]
[361825466,1747823641168,-2763.51,0.0003726,5]
[361825467,1747823641177,-655.48,0.0003726,5]
[361825468,1747823641187,-6358.26,0.0003726,5]
[361825469,1747823641196,-3823.46,0.0003726,5]
[361825470,1747823641206,-420.0,0.0003726,5]
[361825471,1747823641218,-420.0,0.0003726,5]
[361825472,1747823641227,-2138.94,0.0003726,5]
[361825473,1747823641236,-3514.65,0.0003726,5]
[361825474,1747823641246,-578.47,0.0003726,5]
[361825475,1747823641256,-420.0,0.0003726,5]
[361825476,1747823641266,-1778.66,0.0003726,5]
[361825477,1747823641275,-7467.95,0.0003726,5]
[361825478,1747823641285,-4923.96,0.0003726,5]
[361825479,1747823641294,-420.87,0.0003726,5]
[361825480,1747823641304,-420.0,0.0003726,5]
[361825481,1747823641313,-1642.25,0.0003726,5]
[361825482,1747823641323,-1388.95,0.0003726,5]
[361825483,1747823641335,-15894.82,0.0003726,5]
[361825484,1747823641345,-7928.56,0.0003726,5]
[361825485,1747823641354,-535.54,0.0003726,5]
[361825486,1747823641363,-3648.84,0.0003726,5]
[361825487,1747823641373,-420.0,0.0003726,5]
[361825488,1747823641384,-18415.06,0.0003726,5]
[361825489,1747823641396,-420.0,0.0003726,5]
[361825490,1747823641406,-584.64,0.0003726,5]
[361825491,1747823641415,-1096.3,0.0003726,5]
[361825492,1747823641426,-2111.71,0.0003726,5]
[361825493,1747823641435,-2534.37,0.0003726,5]
[361825494,1747823641445,-2727.38,0.0003726,5]
[361825495,1747823641454,-4064.18,0.0003726,5]
[361825496,1747823641464,-481.82,0.0003726,5]
[361825497,1747823641476,-1605.11,0.0003726,5]
[361825498,1747823641486,-583.63,0.0003726,5]
[361825499,1747823641495,-420.0,0.0003726,5]
[361825500,1747823641505,-2791.01,0.0003726,5]
[361825501,1747823641515,-3277.38,0.0003726,5]
[361825502,1747823641525,-1946.19,0.0003726,5]
[361825503,1747823641535,-4162.95,0.0003726,5]
[361825504,1747823641546,-486.64,0.0003726,5]
[361825505,1747823641556,-1793.09,0.0003726,5]
[361825506,1747823641565,-2365.3,0.0003726,5]
[361825507,1747823641575,-5030.39,0.0003726,5]
[361825508,1747823641585,-1065.78,0.0003726,5]
[361825509,1747823641595,-5351.26,0.0003726,5]
[361825510,1747823641605,-8618.58,0.0003726,5]
[361825511,1747823641614,-420.0,0.0003726,5]
[361825512,1747823641624,-1488.03,0.0003726,5]
[361825513,1747823641634,-853.5,0.0003726,5]
[361825514,1747823641644,-4366.01,0.0003726,5]
[361825515,1747823641654,-1284.33,0.0003726,5]
[361825516,1747823641664,-5387.66,0.0003726,5]
[361825517,1747823641674,-3564.21,0.0003726,5]
[361825518,1747823641684,-643.95,0.0003726,5]
[361825519,1747823641694,-11304.41,0.0003726,5]
[361825520,1747823641704,-751.7,0.0003726,5]
[361825521,1747823641714,-873.4,0.0003726,5]
[361825522,1747823641724,-1096.95,0.0003726,5]
[361825523,1747823641734,-441.74,0.0003726,5]
[361825524,1747823641743,-781.82,0.0003726,5]
[361825525,1747823641753,-420.0,0.0003726,5]
[361825526,1747823641763,-871.43,0.0003726,5]
[361825527,1747823641773,-778.01,0.0003726,5]
[361825528,1747823641783,-3424.15,0.0003726,5]
[361825529,1747823641792,-6336.25,0.0003726,5]
[361825530,1747823641802,-420.0,0.0003726,5]
[361825531,1747823641813,-575.11,0.0003726,5]
[361825532,1747823641822,-469.12,0.0003726,5]
[361825533,1747823641832,-2778.38,0.0003726,5]
[361825534,1747823641842,-5264.38,0.0003726,5]
[361825535,1747823641851,-2282.35,0.0003726,5]
[361825536,1747823641861,-2508.06,0.0003726,5]
[361825537,1747823641870,-477.54,0.0003726,5]
[361825538,1747823641880,-420.0,0.0003726,5]
[361825539,1747823641889,-45711.39,0.0003726,5]
[361825540,1747823641899,-1438.01,0.0003726,5]
[361825541,1747823641909,-2227.33,0.0003726,5]
[361825542,1747823641919,-420.0,0.0003726,5]
[361825543,1747823641929,-2994.99,0.0003726,5]
[361825544,1747823641938,-492.73,0.0003726,5]
[361825545,1747823641948,-845.16,0.0003726,5]
[361825546,1747823641958,-2847.74,0.0003726,5]
[361825547,1747823641968,-7033.02,0.0003726,5]
[361825548,1747823641978,-20631.06,0.0003726,5]
[361825549,1747823641988,-1653.01,0.0003726,5]
[361825550,1747823641998,-440.6,0.0003726,5]
[361825551,1747823642008,-480.69,0.0003726,5]
[361825552,1747823642018,-908.75,0.0003726,5]
[361825553,1747823642027,-420.0,0.0003726,5]
[361825554,1747823642037,-1811.64,0.0003726,5]
[361825555,1747823642046,-262.96270537,0.0003726,5]
[361825556,1747823642056,-1675.59,0.0003726,5]
[361825557,1747823642065,-1341.01,0.0003726,5]
[361825558,1747823642075,-1620.28,0.0003726,5]
[361825559,1747823642084,-2039.96,0.0003726,5]
[361825560,1747823642093,-659.87,0.0003726,5]
[361825561,1747823642103,-1650.39,0.0003726,5]
[361825562,1747823642114,-2331.07,0.0003726,5]
[361825563,1747823642123,-1130.47,0.0003726,5]
[361825564,1747823642132,-8529.77,0.0003726,5]
[361825565,1747823642141,-1170.52,0.0003726,5]
[361825566,1747823642151,-1019.14,0.0003726,5]
[361825567,1747823642160,-594.46,0.0003726,5]
[361825568,1747823642172,-420.0,0.0003726,5]
[361825569,1747823642182,-528.88,0.0003726,5]
[361825570,1747823642191,-420.0,0.0003726,5]
[361825571,1747823642201,-729.81,0.0003726,5]
[361825572,1747823642211,-6448.31,0.0003726,5]
[361825573,1747823642220,-157.265004,0.0003726,5]
[361825574,1747823642229,-1260.39,0.0003726,5]
[361825575,1747823642239,-4031.81,0.0003726,5]
[361825576,1747823642249,-15980.3,0.0003726,2]
[361825577,1747823642259,-569.82,0.0003726,5]
[361825578,1747823642268,-1991.55,0.0003726,5]
[361825579,1747823642278,-13852.49,0.0003726,5]
[361825580,1747823642289,-1826.19,0.0003726,5]
[361825581,1747823642299,-711.84,0.0003726,5]
[361825582,1747823642309,-932.88,0.0003726,5]
[361825583,1747823642319,-1316.77,0.0003726,5]
[361825584,1747823642329,-1559.3,0.0003726,5]
[361825585,1747823642339,-1828.91,0.0003726,5]
[361825586,1747823642348,-1672.61,0.0003726,5]
[361825587,1747823642357,-6643.48,0.0003726,5]
[361825588,1747823642367,-5987.12,0.0003726,5]
[361825589,1747823642376,-4970.74,0.0003726,5]
[361825590,1747823642511,-908.99,0.0003726,5]
[361825591,1747823642528,-1754.62,0.0003726,5]
[361825592,1747823642539,-636.17,0.0003726,5]
[361825593,1747823642549,-907.69,0.0003726,5]
[361825594,1747823642560,-434.27,0.0003726,5]
[361825595,1747823642570,-420.0,0.0003726,5]
[361825596,1747823642581,-14282.24,0.0003726,5]
[361825597,1747823642591,-2354.7,0.0003726,5]
[361825598,1747823642601,-2934.17,0.0003726,5]
[361825599,1747823642611,-420.0,0.0003726,5]
[361825600,1747823642621,-2098.09,0.0003726,5]
[361825601,1747823642630,-2370.12,0.0003726,5]
[361825602,1747823642640,-635.77,0.0003726,5]
[361825603,1747823642650,-1608.41,0.0003726,5]
[361825604,1747823642660,-2448.57,0.0003726,5]
[361825605,1747823642675,-565.39,0.0003726,5]
[361825606,1747823642685,-832.67,0.0003726,5]
[361825607,1747823642695,-1727.02,0.0003726,5]
[361825608,1747823642705,-2132.27,0.0003726,5]
[361825609,1747823642715,-1444.81,0.0003726,5]
[361825610,1747823642726,-674.57,0.0003726,5]
[361825611,1747823642736,-1244.04,0.0003726,5]
[361825612,1747823642746,-14461.5,0.0003726,5]
[361825613,1747823642757,-5215.67,0.0003726,5]
[361825614,1747823642768,-4167.33,0.0003726,5]
[361825615,1747823642779,-888.13,0.0003726,5]
[361825616,1747823642788,-207938.64,0.0003726,5]
[361825617,1747823642798,-548.09,0.0003726,5]
[361825618,1747823642808,-2319.06,0.0003726,5]
[361825619,1747823642819,-3257.11,0.0003726,5]
[361825620,1747823642829,-1507.21,0.0003726,5]
[361825621,1747823642839,-1493.55,0.0003726,5]
[361825622,1747823642849,-2557.88,0.0003726,5]
[361825623,1747823642859,-1088.44,0.0003726,5]
[361825624,1747823642869,-2873.2,0.0003726,5]
[361825625,1747823642879,-697.67,0.0003726,5]
[361825626,1747823642889,-5582.21,0.0003726,5]
[361825627,1747823642899,-480.01,0.0003726,5]
[361825628,1747823642909,-2282.96,0.0003726,5]
[361825629,1747823642919,-1657.0,0.0003726,5]
[361825630,1747823642930,-420.0,0.0003726,5]
[361825631,1747823642939,-799.92,0.0003726,5]
[361825632,1747823642949,-1063.9,0.0003726,5]
[361825633,1747823642959,-18765.11,0.0003726,5]
[361825634,1747823642969,-420.0,0.0003726,5]
[361825635,1747823642979,-673.17,0.0003726,5]
[361825636,1747823642988,-3847.23,0.0003726,5]
[361825637,1747823642998,-549.05,0.0003726,5]
[361825638,1747823643008,-2564.95,0.0003726,5]
[361825639,1747823643018,-474.32,0.0003726,5]
[361825640,1747823643029,-1818.07,0.0003726,5]
[361825641,1747823643039,-42262.48,0.0003726,5]
[361825642,1747823643050,-1719.68,0.0003726,5]
[361825643,1747823643060,-4510.74,0.0003726,5]
[361825644,1747823643070,-516.93,0.0003726,5]
[361825645,1747823643079,-3137.08,0.0003726,5]
[361825646,1747823643089,-506.82,0.0003726,5]
[361825647,1747823643099,-9532.22,0.0003726,5]
[361825648,1747823643109,-1001.23,0.0003726,5]
[361825649,1747823643120,-433.81583984,0.0003726,5]
[361825650,1747823643130,-1349.86,0.0003726,5]
[361825651,1747823643140,-1554.78,0.0003726,5]
[361825652,1747823643150,-2359.68,0.0003726,5]
[361825653,1747823643161,-874.84,0.0003726,5]
[361825654,1747823643172,-627.61,0.0003726,5]
[361825655,1747823643182,-670.93,0.0003726,5]
[361825656,1747823643193,-420.0,0.0003726,5]
[361825657,1747823643203,-1909.1,0.0003726,5]
[361825658,1747823643214,-3667.82,0.0003726,5]
[361825659,1747823643224,-713.73,0.0003726,5]
[361825660,1747823643235,-756.58,0.000373,14]
[361825661,1747823643245,-400.0,0.0003737,2]
[361825662,1747823643255,-400.0,0.0003737,2]
[361825663,1747823643266,-150.0,0.00037382,2]
[361825664,1747823643276,-208.9,0.000374,19]
[361825665,1747823643286,-2162.32698291,0.00037412,30]
[361825666,1747823643296,-212.0,0.0003743,30]
[361825667,1747823643306,-242.29958709,0.00037534,5]
[361825668,1747823643316,-868.63,0.00037534,5]
[361825669,1747823643326,-771.73,0.00037534,5]
[361825670,1747823643336,-1206.97,0.00037534,5]
[361825671,1747823643346,-1764.15,0.00037534,5]
[361825672,1747823643356,-550.16,0.00037534,5]
[361825673,1747823643366,-497.1,0.00037534,5]
[361825674,1747823643375,-420.0,0.00037534,5]
[361825675,1747823643388,-965.56,0.00037534,5]
[361825676,1747823643398,-616.51,0.00037534,5]
[361825677,1747823643408,-562.65,0.00037534,5]
[361825678,1747823643418,-611.48,0.00037534,5]
[361825679,1747823643429,-506.54,0.00037534,5]
[361825680,1747823643439,-499.33,0.00037534,5]
[361825681,1747823643448,-911.46,0.00037534,5]
[361825682,1747823643458,-1153.75,0.00037534,5]
[361825683,1747823643470,-394.16644044,0.00037534,5]
[361825684,1747823643480,-730.43,0.00037534,5]
[361825685,1747823643490,-420.0,0.00037534,5]
[361825686,1747823643500,-1697.54,0.00037534,5]
[361825687,1747823643510,-579.77,0.00037534,5]
[361825688,1747823643521,-420.0,0.00037534,5]
[361825689,1747823643531,-570.61,0.00037534,5]
[361825690,1747823643542,-788.01,0.00037534,5]
[361825691,1747823643552,-1490.72,0.00037534,5]
[361825692,1747823643563,-917.84,0.00037534,5]
[361825693,1747823643574,-642.67,0.00037534,5]
[361825694,1747823643584,-901.58,0.00037534,5]
[361825695,1747823643594,-807.74,0.00037534,5]
[361825696,1747823643605,-3015.53,0.00037534,5]
[361825697,1747823643615,-460.17,0.00037534,5]
[361825698,1747823643625,-642.11,0.00037534,5]
[361825699,1747823643635,-420.0,0.00037534,5]
[361825700,1747823643645,-1185.77,0.00037534,5]
[361825701,1747823643655,-973.19,0.00037534,5]
[361825702,1747823643664,-497.57,0.00037534,5]
[361825703,1747823643675,-1098.15,0.00037534,5]
[361825704,1747823643684,-685.16,0.00037534,5]
[361825705,1747823643695,-448.34,0.00037534,5]
[361825706,1747823643705,-818.23,0.00037534,5]
[361825707,1747823643715,-1485.21,0.00037534,5]
[361825708,1747823643726,-443.81,0.00037534,5]
[361825709,1747823643736,-1526.88,0.00037534,5]
[361825710,1747823643746,-420.0,0.00037534,5]
[361825711,1747823643756,-470.16,0.00037534,5]
[361825712,1747823643766,-443.58,0.00037534,5]
[361825713,1747823643776,-669.64,0.00037534,5]
[361825714,1747823643787,-420.0,0.00037534,5]
[361825715,1747823643797,-937.45,0.00037534,5]
[361825716,1747823643808,-2266.87,0.00037534,5]
[361825717,1747823643818,-420.0,0.00037534,5]
[361825718,1747823643828,-442.68,0.00037534,5]
[361825719,1747823643838,-420.0,0.00037534,5]
[361825720,1747823643848,-597.09,0.00037534,5]
[361825721,1747823643858,-655.53,0.00037534,5]
[361825722,1747823643868,-636.42,0.00037534,5]
[361825723,1747823643878,-420.0,0.00037534,5]
[361825724,1747823643889,-838.78,0.00037534,5]
[361825725,1747823643899,-493.93,0.00037534,5]
[361825726,1747823643909,-545.01624431,0.00037534,5]
[361825727,1747823643919,-560.23,0.00037534,5]
[361825728,1747823643929,-1078.18,0.00037534,5]
[361825729,1747823643939,-420.0,0.00037534,5]
[361825730,1747823643950,-420.0,0.00037534,5]
[361825731,1747823643960,-1065.69,0.00037534,5]
[361825732,1747823643970,-1253.93,0.00037534,5]
[361825733,1747823643980,-1274.75,0.00037534,5]
[361825734,1747823643990,-463.91,0.00037534,5]
[361825735,1747823644000,-721.97,0.00037534,5]
[361825736,1747823644010,-2322.3,0.00037534,5]
[361825737,1747823644020,-821.62,0.00037534,5]
[361825738,1747823644030,-422.38,0.00037534,5]
[361825739,1747823644040,-550.85,0.00037534,5]
[361825740,1747823644050,-1544.61,0.00037534,5]
[361825741,1747823644060,-420.0,0.00037534,5]
[361825742,1747823644070,-499.46,0.00037534,5]
[361825743,1747823644080,-616.6,0.00037534,5]
[361825744,1747823644090,-678.04,0.00037534,5]
[361825745,1747823644100,-546.75,0.00037534,5]
[361825746,1747823644110,-1170.85,0.00037534,5]
[361825747,1747823644120,-331.74064563,0.00037534,5]
[361825748,1747823644129,-420.0,0.00037534,5]
[361825749,1747823644139,-1581.01,0.00037534,5]
[361825750,1747823644149,-2020.82,0.00037534,5]
[361825751,1747823644159,-1587.36,0.00037534,5]
[361825752,1747823644169,-440.31,0.00037534,5]
[361825753,1747823644178,-528.73,0.00037534,5]
[361825754,1747823644188,-420.0,0.00037534,5]
[361825755,1747823644199,-835.65,0.00037534,5]
[361825756,1747823644208,-530.24,0.00037534,5]
[361825757,1747823644218,-632.49,0.00037534,5]
[361825758,1747823644228,-712.53,0.00037534,5]
[361825759,1747823644238,-420.0,0.00037534,5]
[361825760,1747823644248,-905.81,0.00037534,5]
[361825761,1747823644258,-1500.35,0.00037534,5]
[361825762,1747823644268,-913.23,0.00037534,5]
[361825763,1747823644278,-891.23,0.00037534,5]
[361825764,1747823644288,-420.0,0.00037534,5]
[361825765,1747823644298,-420.0,0.00037534,5]
[361825766,1747823644308,-420.0,0.00037534,5]
[361825767,1747823644317,-532.78,0.00037534,5]
[361825768,1747823644328,-793.59,0.00037534,5]
[361825769,1747823644337,-420.0,0.00037534,5]
[361825770,1747823644347,-192.75,0.00037534,5]
[361825771,1747823644356,-716.67,0.00037534,5]
[361825772,1747823644366,-431.22,0.00037534,5]
[361825773,1747823644376,-3321.89,0.00037534,5]
[361825774,1747823644386,-655.87,0.00037534,5]
[361825775,1747823644399,-420.0,0.00037534,5]
[361825776,1747823644408,-464.92,0.00037534,5]
[361825777,1747823644418,-752.46,0.00037534,5]
[361825778,1747823644429,-1164.32,0.00037534,5]
[361825779,1747823644439,-447.46,0.00037534,5]
[361825780,1747823644448,-1182.51,0.00037534,5]
[361825781,1747823644458,-970.46,0.00037534,5]
[361825782,1747823644468,-2566.8,0.00037534,3]
[361825783,1747823644478,-420.0,0.00037534,5]
[361825784,1747823644487,-986.1,0.00037534,5]
[361825785,1747823644496,-3544.76,0.00037534,5]
[361825786,1747823644505,-420.0,0.00037534,5]
[361825787,1747823644515,-528.46,0.00037534,5]
[361825788,1747823644524,-1116.24,0.00037534,5]
[361825789,1747823644534,-607.2,0.00037534,5]
[361825790,1747823644543,-498.41,0.00037534,5]
[361825791,1747823644553,-511.54,0.00037534,5]
[361825792,1747823644562,-1446.26,0.00037534,5]
[361825793,1747823644571,-635.53,0.00037534,5]
[361825794,1747823644581,-602.05,0.00037534,5]
[361825795,1747823644594,-3171.93,0.00037534,5]
[361825796,1747823644604,-672.06,0.00037534,5]
[361825797,1747823644614,-1136.92,0.00037534,5]
[361825798,1747823644623,-501.87,0.00037534,5]
[361825799,1747823644633,-420.0,0.00037534,5]
[361825800,1747823644642,-960.17,0.00037534,5]
[361825801,1747823644652,-1498.01,0.00037534,5]
[361825802,1747823644662,-420.0,0.00037534,5]
[361825803,1747823644672,-489.93,0.00037534,5]
[361825804,1747823644681,-420.0,0.00037534,5]
[361825805,1747823644691,-1181.55,0.00037534,5]
[361825806,1747823644700,-1634.56,0.00037534,5]
[361825807,1747823644710,-731.06,0.00037534,5]
[361825808,1747823644720,-665.75,0.00037534,5]
[361825809,1747823645165,-725.49,0.00037534,5]
[361825810,1747823645184,-1010.87,0.00037534,5]
[361825811,1747823645194,-1218.91,0.00037534,5]
[361825812,1747823645204,-1168.31,0.00037534,5]
[361825813,1747823645214,-1264.38,0.00037534,5]
[361825814,1747823645225,-420.0,0.00037534,5]
[361825815,1747823645235,-420.0,0.00037534,2]
[361825816,1747823645245,-3033.08,0.00037534,5]
[361825817,1747823645255,-584.07,0.00037534,5]
[361825818,1747823645265,-420.0,0.00037534,5]
[361825819,1747823645276,-740.34,0.00037534,5]
[361825820,1747823645287,-420.0,0.00037534,5]
[361825821,1747823645297,-243.59036876,0.00037534,5]
[361825822,1747823645308,-1236.73,0.00037534,5]
[361825823,1747823645318,-718.57,0.00037534,5]
[361825824,1747823645329,-420.0,0.00037534,2]
[361825825,1747823645339,-2646.97,0.00037534,5]
[361825826,1747823645349,-3655.51,0.00037534,5]
[361825827,1747823645359,-420.0,0.00037534,5]
[361825828,1747823645370,-1194.67,0.00037534,5]
[361825829,1747823645381,-637.39,0.00037534,5]
[361825830,1747823645392,-2368.39,0.00037534,5]
[361825831,1747823645402,-932.97,0.00037534,5]
[361825832,1747823645412,-475.79,0.00037534,5]
[361825833,1747823645423,-788.04,0.00037534,5]
[361825834,1747823645434,-469.81,0.00037534,5]
[361825835,1747823645445,-1158.88,0.00037534,5]
[361825836,1747823645455,-2693.72,0.00037534,5]
[361825837,1747823645468,-2741.78,0.00037534,5]
[361825838,1747823645479,-1351.52,0.00037534,5]
[361825839,1747823645489,-1167.31,0.00037534,5]
[361825840,1747823645500,-1192.06,0.00037534,5]
[361825841,1747823645510,-664.46,0.00037534,5]
[361825842,1747823645520,-2096.4,0.00037534,5]
[361825843,1747823645530,-783.68,0.00037534,5]
[361825844,1747823645540,-506.87,0.00037534,5]
[361825845,1747823645551,-1450.92,0.00037534,5]
[361825846,1747823645561,-1675.88,0.00037534,5]
[361825847,1747823645572,-421.11,0.00037534,5]
[361825848,1747823645583,-655.43,0.00037534,5]
[361825849,1747823645593,-1330.16,0.00037534,5]
[361825850,1747823645602,-628.75,0.00037534,5]
[361825851,1747823645613,-470.23,0.00037534,5]
[361825852,1747823645623,-789.43,0.00037534,5]
[361825853,1747823645633,-2066.32,0.00037534,5]
[361825854,1747823645643,-543.38,0.00037534,5]
[361825855,1747823645655,-1884.88,0.00037534,5]
[361825856,1747823645665,-443.39,0.00037534,5]
[361825857,1747823645676,-814.52,0.00037534,5]
[361825858,1747823645686,-468.75,0.00037534,5]
[361825859,1747823645696,-2280.59,0.00037534,5]
[361825860,1747823645706,-420.0,0.00037534,5]
[361825861,1747823645717,-420.0,0.00037534,5]
[361825862,1747823645727,-1660.08,0.00037534,5]
[361825863,1747823645737,-182.07626269,0.00037534,5]
[361825864,1747823645747,-2531.44,0.00037534,5]
[361825865,1747823645757,-891.37,0.00037534,5]
[361825866,1747823645767,-1229.28,0.00037534,5]
[361825867,1747823645779,-562.73,0.00037534,5]
[361825868,1747823645790,-420.0,0.00037534,5]
[361825869,1747823645801,-420.0,0.00037534,5]
[361825870,1747823645811,-639.64,0.00037534,5]
[361825871,1747823645822,-1520.14,0.00037534,5]
[361825872,1747823645832,-420.0,0.00037534,5]
[361825873,1747823645842,-2002.78,0.00037534,5]